fUST/lending_fUST_20240717
["ID","MTS","AMOUNT","RATE_DAILY","PERIOD"]
[332466522,1721211038607,-509.65672483,0.00021917,2]
[332466524,1721211038617,-500.0,0.00021917,2]
[332466526,1721211038626,-500.0,0.00021917,2]
[332466528,1721211038635,-503.7788474,0.00021917,2]
[332466530,1721211038644,-500.0,0.00021917,2]
[332466532,1721211038654,-500.0,0.00021917,2]
[332466534,1721211038663,-500.0,0.00021917,2]
[332466536,1721211038676,-500.0,0.00021917,2]
[332466538,1721211038686,-506.38658959,0.00021917,2]
[332466540,1721211038695,-500.0,0.00021917,2]
[332466542,1721211038705,-500.0,0.00021917,2]
[332466544,1721211038715,-500.0,0.00021917,2]
[332466547,1721211038724,-500.0,0.00021917,2]
[332466549,1721211038734,-385.26515811,0.00021917,2]
[332466551,1721211038743,-500.0,0.00021917,2]
[332466553,1721211038752,-500.0,0.00021917,2]
[332466555,1721211038762,-500.0,0.00021917,2]
[332466557,1721211038773,-500.0,0.00021917,2]
[332466559,1721211038782,-500.0,0.00021917,2]
[332466561,1721211038792,-500.0,0.00021917,2]
[332466563,1721211038801,-500.0,0.00021917,2]
[332466565,1721211038811,-500.0,0.00021917,2]
[332466567,1721211038820,-486.50479776,0.00021917,2]
[332466569,1721211038829,-500.0,0.00021917,2]
[332466571,1721211038839,-500.0,0.00021917,2]
[332466573,1721211038848,-500.0,0.00021917,2]
[332466575,1721211038857,-500.0,0.00021917,2]
[332466577,1721211038867,-500.0,0.00021917,2]
[332466579,1721211038876,-500.0,0.00021917,2]
[332466581,1721211038886,-500.0,0.00021917,2]
[332466583,1721211038895,-500.0,0.00021917,2]
[332466585,1721211038904,-515.52653776,0.00021917,2]
[332466587,1721211038913,-500.0,0.00021917,2]
[332466589,1721211038924,-502.75218176,0.00021917,2]
[332466591,1721211038933,-503.32363002,0.00021917,2]
[332466593,1721211038942,-500.0,0.00021917,2]
[332466595,1721211038953,-500.0,0.00021917,2]
[332466597,1721211038965,-500.0,0.00021917,2]
[332466599,1721211038975,-500.0,0.00021917,2]
[332466601,1721211038985,-500.0,0.00021917,2]
[332466603,1721211038995,-500.0,0.00021917,2]
[332466605,1721211039005,-256.98708877,0.00021917,2]
[332466607,1721211039015,-500.0,0.00021917,2]
[332466609,1721211039025,-500.0,0.00021917,2]
[332466611,1721211039036,-500.0,0.00021917,2]
[332466613,1721211039045,-563.0327418,0.00021917,2]
[332466615,1721211039055,-500.0,0.00021917,2]
[332466618,1721211039064,-500.0,0.00021917,2]
[332466619,1721211039073,-500.0,0.00021917,2]
[332466622,1721211039083,-500.0,0.00021917,2]
[332466624,1721211039092,-500.0,0.00021917,2]
[332466626,1721211039102,-500.0,0.00021917,2]
[332466628,1721211039113,-369.71044317,0.00021917,2]
[332466630,1721211039122,-500.0,0.00021917,2]
[332466632,1721211039131,-500.0,0.00021917,2]
[332466634,1721211039141,-500.0,0.00021917,2]
[332466636,1721211039150,-467.18215292,0.00021917,2]
[332466638,1721211039160,-500.0,0.00021917,2]
[332466640,1721211039169,-253.58212851,0.00021917,2]
[332466642,1721211039178,-501.81252039,0.00021917,2]
[332466644,1721211039189,-500.0,0.00021917,2]
[332466646,1721211039198,-500.0,0.00021917,2]
[332466648,1721211039208,-500.0,0.00021917,2]
[332466650,1721211039218,-500.0,0.00021917,2]
[332466652,1721211039228,-500.49014017,0.00021917,2]
[332466654,1721211039238,-500.0,0.00021917,2]
[332466656,1721211039248,-500.0,0.00021917,2]
[332466658,1721211039258,-500.0,0.00021917,2]
[332466660,1721211039267,-500.0,0.00021917,2]
[332466662,1721211039276,-501.86855689,0.00021917,2]
[332466664,1721211039287,-500.0,0.00021917,2]
[332466666,1721211039296,-500.0,0.00021917,2]
[332466668,1721211039305,-502.49638659,0.00021917,2]
[332466670,1721211039315,-500.0,0.00021917,2]
[332466672,1721211039324,-500.0,0.00021917,2]
[332466674,1721211039333,-500.0,0.00021917,2]
[332466676,1721211039343,-500.0,0.00021917,2]
[332466678,1721211039352,-500.0,0.00021917,2]
[332466681,1721211039361,-500.0,0.00021917,2]
[332466683,1721211039370,-6280.1,0.00021917,2]
[332466685,1721211039379,-39840.44,0.00021917,2]
[332466687,1721211039390,-500.0,0.00021917,2]
[332466689,1721211039399,-500.0,0.00021917,2]
[332466691,1721211039408,-500.0,0.00021917,2]
[332466693,1721211039417,-500.0,0.00021917,2]
[332466695,1721211039426,-500.0,0.00021917,2]
[332466697,1721211039436,-285.58892814,0.00021917,2]
[332466699,1721211039445,-500.0,0.00021917,2]
[332466701,1721211039454,-500.0,0.00021917,2]
[332466703,1721211039463,-500.0,0.00021917,2]
[332466705,1721211039473,-500.0,0.00021917,2]
[332466707,1721211039482,-539.85084873,0.00021917,2]
[332466709,1721211039491,-500.0,0.00021917,2]
[332466711,1721211039501,-500.0,0.00021917,2]
[332466713,1721211039510,-500.0,0.00021917,2]
[332466715,1721211039520,-500.0,0.00021917,2]
[332466717,1721211039529,-500.0,0.00021917,2]
[332466720,1721211039540,-500.0,0.00021917,2]
[332466723,1721211039549,-500.0,0.00021917,2]
[332466725,1721211039559,-509.46665652,0.00021917,2]
[332466727,1721211039569,-581.26482402,0.00021917,2]
[332466729,1721211039579,-500.0,0.00021917,2]
[332466731,1721211039590,-500.0,0.00021917,2]
[332466733,1721211039600,-500.0,0.00021917,2]
[332466735,1721211039609,-500.0,0.00021917,2]
[332466737,1721211039619,-542.6573928,0.00021917,2]
[332466739,1721211039628,-500.0,0.00021917,2]
[332466741,1721211039638,-500.0,0.00021917,2]
[332466743,1721211039647,-494.37541627,0.00021917,2]
[332466745,1721211039656,-500.0,0.00021917,2]
[332466747,1721211039666,-244.28139275,0.00021917,2]
[332466751,1721211039678,-500.0,0.00021917,2]
[332466754,1721211039687,-500.0,0.00021917,2]
[332466757,1721211039696,-259.47834909,0.00021917,2]
[332466760,1721211039706,-500.0,0.00021917,2]
[332466762,1721211039715,-2000.0,0.00021917,2]
[332466764,1721211039726,-500.0,0.00021917,2]
[332466766,1721211039735,-500.0,0.00021917,2]
[332466769,1721211039745,-500.0,0.00021917,2]
[332466773,1721211039754,-500.0,0.00021917,2]
[332466776,1721211039764,-500.0,0.00021917,2]
[332466778,1721211039776,-2096.39,0.00021917,2]
[332466780,1721211039786,-2096.39,0.00021917,2]
[332466782,1721211039795,-2096.39,0.00021917,2]
[332466784,1721211039804,-597.96,0.00021917,2]
[332466786,1721211039814,-500.0,0.00021917,2]
[332466788,1721211039823,-500.0,0.00021917,2]
[332466790,1721211039832,-500.0,0.00021917,2]
[332466793,1721211039843,-500.0,0.00021917,2]
[332466795,1721211039852,-500.0,0.00021917,2]
[332466797,1721211039864,-3878.75,0.00021917,2]
[332466799,1721211039874,-500.0,0.00021917,2]
[332466801,1721211039885,-500.0,0.00021917,2]
[332466804,1721211039896,-500.0,0.00021917,2]
[332466806,1721211039905,-780.32,0.00021917,2]
[332466808,1721211039915,-500.0,0.00021917,2]
[332466810,1721211039923,-500.0,0.00021917,2]
[332466812,1721211039933,-500.0,0.00021917,2]
[332466814,1721211039942,-702.82,0.00021917,2]
[332466816,1721211039952,-500.0,0.00021917,2]
[332466818,1721211039966,-500.0,0.00021917,2]
[332466820,1721211039976,-500.0,0.00021917,2]
[332466822,1721211039986,-1000.0,0.00021917,10]
[332466824,1721211039998,-1000.0,0.00021917,10]
[332466826,1721211040007,-500.0,0.00021917,2]
[332466828,1721211040016,-1000.0,0.00021917,10]
[332466830,1721211040025,-11401.43,0.00021917,2]
[332466832,1721211040036,-500.0,0.00021917,2]
[332466834,1721211040046,-500.0,0.00021917,2]
[332466836,1721211040055,-865.56,0.00021917,2]
[332466838,1721211040065,-500.0,0.00021917,2]
[332466840,1721211040074,-2185.06,0.00021917,2]
[332466842,1721211040083,-3000.0,0.00021917,2]
[332466844,1721211040092,-500.0,0.00021917,2]
[332466846,1721211040101,-2368.34,0.00021917,2]
[332466848,1721211040110,-500.0,0.00021917,2]
[332466850,1721211040119,-500.0,0.00021917,2]
[332466852,1721211040129,-500.0,0.00021917,2]
[332466854,1721211040138,-500.0,0.00021917,2]
[332466856,1721211040148,-200.0,0.00021917,2]
[332466858,1721211040158,-707.33,0.00021917,2]
[332466860,1721211040167,-500.0,0.00021917,2]
[332466862,1721211040177,-500.0,0.00021917,2]
[332466864,1721211040186,-500.0,0.00021917,2]
[332466866,1721211040195,-500.0,0.00021917,2]
[332466868,1721211040205,-500.0,0.00021917,2]
[332466870,1721211040214,-500.0,0.00021917,2]
[332466872,1721211040223,-500.0,0.00021917,2]
[332466874,1721211040233,-500.0,0.00021917,2]
[332466876,1721211040243,-500.0,0.00021917,2]
[332466878,1721211040252,-500.0,0.00021917,2]
[332466880,1721211040261,-500.0,0.00021917,2]
[332466882,1721211040271,-500.0,0.00021917,2]
[332466884,1721211040280,-500.0,0.00021917,2]
[332466887,1721211040289,-612.88,0.00021917,2]
[332466890,1721211040299,-500.0,0.00021917,2]
[332466893,1721211040308,-429.72354235,0.00021917,2]
[332466896,1721211040317,-715.26,0.00021917,2]
[332466899,1721211040326,-500.0,0.00021917,2]
[332466902,1721211040335,-1004.41735524,0.00021917,2]
[332466905,1721211040344,-501.65186262,0.00021917,2]
[332466908,1721211040354,-166.666666,0.00021918,2]
[332466935,1721211040550,-548.86,0.00021969,2]
[332466938,1721211040568,-982.80619448,0.00022,2]
[332466940,1721211040580,-159.0,0.00022,2]
[332466943,1721211040592,-160.49649706,0.00022016,2]
[332466945,1721211040602,-548.86,0.00022049,2]
[332466947,1721211040613,-548.86,0.00022049,2]
[332466949,1721211040623,-548.86,0.00022049,2]
[332466951,1721211040633,-548.86,0.00022049,2]
[332466953,1721211040643,-548.92,0.00022049,2]
[332466956,1721211040654,-1000.0,0.0002205,3]
[332466958,1721211040665,-344.21763572,0.00022071,3]
[332466960,1721211040676,-150.0,0.00022081,2]
[332466962,1721211040688,-150.0,0.00022081,2]
[332466964,1721211040698,-504.0,0.00022081,2]
[332466966,1721211040708,-1407.0,0.00022081,2]
[332466969,1721211040718,-1003.18274775,0.000221,2]
[332466971,1721211040727,-362.80119484,0.0002216,2]
[332466973,1721211040736,-219.0,0.00022161,7]
[332466975,1721211040746,-764.99692513,0.00022161,2]
[332466977,1721211040756,-266.54447254,0.00022161,2]
[332466979,1721211040765,-154.77557542,0.00022161,4]
[332466981,1721211040774,-428.94151396,0.00022161,2]
[332466982,1721211040784,-226.06683349,0.00022161,2]
[332466983,1721211040793,-598.66286783,0.00022161,2]
[332466984,1721211040802,-217.6738,0.00022161,2]
[332466985,1721211040811,-219.0,0.00022171,7]
[332466986,1721211040820,-688.43527144,0.00022181,3]
[332466988,1721211040829,-219.0,0.00022181,7]
[332466989,1721211040839,-500.0,0.0002219,2]
[332466991,1721211040849,-500.0,0.0002219,2]
[332466993,1721211040858,-2096.39,0.0002219,2]
[332466995,1721211040867,-500.0,0.0002219,2]
[332466997,1721211040876,-262.10975377,0.0002219,2]
[332466998,1721211040885,-500.0,0.0002219,2]
[332467000,1721211040894,-500.0,0.0002219,2]
[332467001,1721211040903,-500.0,0.0002219,2]
[332467002,1721211040913,-581.52765205,0.0002219,2]
[332467003,1721211040923,-276.30285827,0.0002219,2]
[332467004,1721211040932,-488.86412981,0.0002219,2]
[332467005,1721211040941,-500.0,0.0002219,2]
[332467006,1721211040951,-500.0,0.0002219,2]
[332467007,1721211040964,-500.0,0.0002219,2]
[332467008,1721211040974,-500.0,0.0002219,2]
[332467009,1721211040983,-500.0,0.0002219,2]
[332467010,1721211040996,-500.0,0.0002219,2]
[332467011,1721211041006,-300.0,0.0002219,2]
[332467012,1721211041016,-500.0,0.00022191,2]
[332467013,1721211041027,-500.0,0.00022191,2]
[332467014,1721211041038,-500.0,0.00022191,2]
[332467015,1721211041048,-500.0,0.00022191,2]
[332467016,1721211041058,-500.0,0.00022191,2]
[332467017,1721211041068,-500.0,0.00022191,2]
[332467018,1721211041078,-500.0,0.00022191,2]
[332467019,1721211041089,-24755.13,0.00022191,2]
[332467020,1721211041102,-1429.26,0.00022191,2]
[332467021,1721211041113,-500.0,0.00022191,2]
[332467022,1721211041124,-3473.81,0.00022191,2]
[332467023,1721211041134,-500.0,0.00022191,2]
[332467024,1721211041144,-500.0,0.00022191,2]
[332467025,1721211041155,-500.0,0.00022191,2]
[332467026,1721211041165,-2310.96,0.00022191,2]
[332467027,1721211041176,-500.0,0.00022191,2]
[332467028,1721211041187,-858.89,0.00022191,2]
[332467029,1721211041199,-500.0,0.00022191,2]
[332467030,1721211041208,-500.0,0.00022191,2]
[332467031,1721211041218,-500.0,0.00022191,2]
[332467032,1721211041227,-520.36763088,0.00022191,2]
[332467033,1721211041240,-504.9879137,0.00022191,2]
[332467034,1721211041249,-500.0,0.00022191,2]
[332467035,1721211041259,-500.0,0.00022191,2]
[332467036,1721211041270,-500.0,0.00022191,2]
[332467037,1721211041279,-500.0,0.00022191,2]
[332467038,1721211041289,-500.0,0.00022191,2]
[332467039,1721211041298,-500.0,0.00022191,2]
[332467040,1721211041309,-500.0,0.00022191,2]
[332467041,1721211041320,-500.0,0.00022191,2]
[332467042,1721211041330,-500.0,0.00022191,2]
[332467043,1721211041341,-500.0,0.00022191,2]
[332467044,1721211041365,-500.0,0.00022191,2]
[332467045,1721211041390,-500.0,0.00022191,2]
[332467046,1721211041414,-500.0,0.00022191,2]
[332467047,1721211041440,-500.0,0.00022191,2]
[332467048,1721211041464,-500.0,0.00022191,2]
[332467049,1721211041496,-344.89137017,0.00022191,2]
[332467050,1721211041528,-500.0,0.00022191,2]
[332467051,1721211041549,-500.0,0.00022191,2]
[332467052,1721211041571,-500.0,0.00022191,2]
[332467053,1721211041591,-500.0,0.00022191,2]
[332467054,1721211041601,-158.09034869,0.00022191,2]
[332467055,1721211041611,-2000.0,0.00022191,2]
[332467056,1721211041620,-500.0,0.00022191,2]
[332467057,1721211041630,-500.0,0.00022191,2]
[332467058,1721211041639,-500.0,0.00022191,2]
[332467059,1721211041648,-500.0,0.00022191,2]
[332467060,1721211041657,-500.0,0.00022191,2]
[332467061,1721211041667,-597.96,0.00022191,2]
[332467062,1721211041676,-500.0,0.00022191,2]
[332467063,1721211041686,-500.0,0.00022191,2]
[332467064,1721211041695,-500.0,0.00022191,2]
[332467065,1721211041705,-500.0,0.00022191,2]
[332467066,1721211041715,-500.0,0.00022191,2]
[332467067,1721211041725,-3878.75,0.00022191,2]
[332467068,1721211041737,-500.0,0.00022191,2]
[332467069,1721211041746,-500.0,0.00022191,2]
[332467070,1721211041756,-500.0,0.00022191,2]
[332467071,1721211041766,-780.32,0.00022191,2]
[332467072,1721211041775,-500.0,0.00022191,2]
[332467073,1721211041785,-500.0,0.00022191,2]
[332467074,1721211041794,-500.0,0.00022191,2]
[332467075,1721211041806,-702.82,0.00022191,2]
[332467076,1721211041816,-500.0,0.00022191,2]
[332467077,1721211041827,-500.0,0.00022191,2]
[332467078,1721211041836,-500.0,0.00022191,2]
[332467079,1721211041846,-500.0,0.00022191,2]
[332467080,1721211041855,-11401.43,0.00022191,2]
[332467081,1721211041865,-500.0,0.00022191,2]
[332467082,1721211041875,-500.0,0.00022191,2]
[332467083,1721211041884,-865.56,0.00022191,2]
[332467084,1721211041894,-500.0,0.00022191,2]
[332467085,1721211041903,-2185.06,0.00022191,2]
[332467086,1721211041913,-3000.0,0.00022191,2]
[332467087,1721211041922,-591.83,0.00022191,2]
[332467088,1721211041932,-2368.34,0.00022191,2]
[332467089,1721211041942,-500.0,0.00022191,2]
[332467090,1721211041954,-500.0,0.00022191,2]
[332467091,1721211041968,-500.0,0.00022191,2]
[332467092,1721211041981,-500.0,0.00022191,2]
[332467093,1721211041992,-200.0,0.00022191,2]
[332467094,1721211042002,-707.33,0.00022191,2]
[332467095,1721211042013,-500.0,0.00022191,2]
[332467096,1721211042023,-500.0,0.00022191,2]
[332467097,1721211042033,-500.0,0.00022191,2]
[332467098,1721211042044,-500.0,0.00022191,2]
[332467099,1721211042053,-500.0,0.00022191,2]
[332467100,1721211042063,-500.0,0.00022191,2]
[332467101,1721211042072,-500.0,0.00022191,2]
[332467102,1721211042082,-500.0,0.00022191,2]
[332467103,1721211042091,-500.0,0.00022191,2]
[332467104,1721211042101,-500.0,0.00022191,2]
[332467105,1721211042110,-500.0,0.00022191,2]
[332467106,1721211042120,-500.0,0.00022191,2]
[332467107,1721211042140,-500.0,0.00022191,2]
[332467108,1721211042151,-612.88,0.00022191,2]
[332467109,1721211042162,-500.0,0.00022191,2]
[332467110,1721211042172,-715.26,0.00022191,2]
[332467111,1721211042183,-500.0,0.00022191,2]
[332467112,1721211042193,-293.3941432,0.00022192,2]
[332467113,1721211042203,-293.6566525,0.00022219,2]
[332467114,1721211042213,-153.0,0.00022219,2]
[332467115,1721211042223,-153.0,0.00022219,2]
[332467116,1721211042233,-153.0,0.00022219,2]
[332467117,1721211042244,-153.0,0.00022219,2]
[332467118,1721211042254,-153.0,0.00022219,2]
[332467119,1721211042264,-306.0,0.00022219,2]
[332467120,1721211042276,-151.0,0.00022284,2]
[332467121,1721211042287,-1401.79680722,0.00022365,3]
[332467122,1721211042297,-300.0,0.000224,10]
[332467123,1721211042306,-166.666666,0.00022431,2]
[332467124,1721211042316,-688.43527144,0.00022455,3]
[332467125,1721211042326,-500.0,0.00022464,2]
[332467126,1721211042336,-500.0,0.00022464,2]
[332467127,1721211042346,-2096.39,0.00022464,2]
[332467128,1721211042356,-2096.39,0.00022464,2]
[332467129,1721211042367,-500.0,0.00022465,2]
[332467130,1721211042377,-390.2,0.00022465,2]
[332467131,1721211042387,-500.0,0.00022465,2]
[332467132,1721211042397,-500.0,0.00022465,2]
[332467133,1721211042406,-500.0,0.00022465,2]
[332467134,1721211042416,-500.0,0.00022465,2]
[332467135,1721211042429,-500.0,0.00022465,2]
[332467136,1721211042440,-24755.13,0.00022465,2]
[332467137,1721211042451,-1429.26,0.00022465,2]
[332467138,1721211042462,-500.0,0.00022465,2]
[332467139,1721211042473,-3473.81,0.00022465,2]
[332467140,1721211042484,-500.0,0.00022465,2]
[332467141,1721211042496,-500.0,0.00022465,2]
[332467142,1721211042509,-500.0,0.00022465,2]
[332467143,1721211042519,-2310.96,0.00022465,2]
[332467144,1721211042529,-500.0,0.00022465,2]
[332467146,1721211042539,-858.89,0.00022465,2]
[332467148,1721211042550,-500.0,0.00022465,2]
[332467149,1721211042560,-500.0,0.00022465,2]
[332467151,1721211042570,-2000.0,0.00022465,2]
[332467154,1721211042579,-500.0,0.00022465,2]
[332467157,1721211042590,-500.0,0.00022465,2]
[332467160,1721211042600,-500.0,0.00022465,2]
[332467162,1721211042611,-500.0,0.00022465,2]
[332467163,1721211042622,-500.0,0.00022465,2]
[332467164,1721211042632,-597.96,0.00022465,2]
[332467165,1721211042642,-245.43,0.00022465,2]
[332467166,1721211042654,-500.0,0.00022465,2]
[332467167,1721211042666,-500.0,0.00022465,2]
[332467168,1721211042676,-500.0,0.00022465,2]
[332467169,1721211042687,-500.0,0.00022465,2]
[332467170,1721211042698,-3878.75,0.00022465,2]
[332467171,1721211042710,-500.0,0.00022465,2]
[332467172,1721211042720,-500.0,0.00022465,2]
[332467175,1721211042730,-500.0,0.00022465,2]
[332467177,1721211042741,-780.32,0.00022465,2]
[332467179,1721211042751,-500.0,0.00022465,2]
[332467181,1721211042763,-500.0,0.00022465,2]
[332467182,1721211042774,-500.0,0.00022465,2]
[332467183,1721211042785,-702.82,0.00022465,2]
[332467184,1721211042795,-500.0,0.00022465,2]
[332467185,1721211042807,-500.0,0.00022465,2]
[332467186,1721211042818,-500.0,0.00022465,2]
[332467187,1721211042828,-500.0,0.00022465,2]
[332467188,1721211042838,-11401.43,0.00022465,2]
[332467189,1721211042849,-500.0,0.00022465,2]
[332467190,1721211042860,-500.0,0.00022465,2]
[332467191,1721211042872,-865.56,0.00022465,2]
[332467192,1721211042883,-500.0,0.00022465,2]
[332467193,1721211042893,-2185.06,0.00022465,2]
[332467194,1721211042904,-3000.0,0.00022465,2]
[332467195,1721211042914,-2368.34,0.00022465,2]
[332467196,1721211042925,-500.0,0.00022465,2]
[332467197,1721211042935,-500.0,0.00022465,2]
[332467198,1721211042944,-500.0,0.00022465,2]
[332467199,1721211042956,-500.0,0.00022465,2]
[332467200,1721211042968,-200.0,0.00022465,2]
[332467201,1721211042978,-707.33,0.00022465,2]
[332467202,1721211042989,-500.0,0.00022465,2]
[332467203,1721211042999,-500.0,0.00022465,2]
[332467204,1721211043008,-500.0,0.00022465,2]
[332467205,1721211043018,-500.0,0.00022465,2]
[332467206,1721211043031,-500.0,0.00022465,2]
[332467207,1721211043044,-500.0,0.00022465,2]
[332467208,1721211043055,-500.0,0.00022465,2]
[332467209,1721211043065,-500.0,0.00022465,2]
[332467210,1721211043077,-500.0,0.00022465,2]
[332467211,1721211043088,-500.0,0.00022465,2]
[332467212,1721211043100,-500.0,0.00022465,2]
[332467214,1721211043110,-500.0,0.00022465,2]
[332467216,1721211043121,-500.0,0.00022465,2]
[332467218,1721211043131,-612.88,0.00022465,2]
[332467220,1721211043142,-500.0,0.00022465,2]
[332467222,1721211043152,-715.26,0.00022465,2]
[332467224,1721211043162,-215.13,0.00022465,2]
[332467226,1721211043172,-293.6566525,0.00022466,2]
[332467228,1721211043183,-293.6566525,0.00022466,2]
[332467229,1721211043193,-362.80119484,0.00022502,2]
[332467232,1721211043203,-151.0,0.00022686,2]
[332467234,1721211043212,-688.43527144,0.00022729,3]
[332467236,1721211043222,-2096.39,0.00022738,2]
[332467238,1721211043232,-149342.706376,0.00022739,5]
[332467240,1721211043243,-500.0,0.00022739,2]
[332467242,1721211043252,-500.0,0.00022739,2]
[332467243,1721211043263,-500.0,0.00022739,2]
[332467244,1721211043273,-500.0,0.00022739,2]
[332467245,1721211043283,-500.0,0.00022739,2]
[332467246,1721211043292,-255.27,0.00022739,2]
[332467247,1721211043302,-24755.13,0.00022739,2]
[332467248,1721211043312,-1429.26,0.00022739,2]
[332467249,1721211043323,-500.0,0.00022739,2]
[332467250,1721211043332,-3473.81,0.00022739,2]
[332467251,1721211043342,-500.0,0.00022739,2]
[332467252,1721211043353,-500.0,0.00022739,2]
[332467255,1721211043365,-500.0,0.00022739,2]
[332467257,1721211043375,-2310.96,0.00022739,2]
[332467258,1721211043385,-159.69739863,0.00022739,2]
[332467259,1721211043395,-858.89,0.00022739,2]
[332467260,1721211043405,-500.0,0.00022739,2]
[332467261,1721211043416,-500.0,0.00022739,2]
[332467262,1721211043425,-2000.0,0.00022739,2]
[332467263,1721211043436,-500.0,0.00022739,2]
[332467264,1721211043447,-500.0,0.00022739,2]
[332467265,1721211043459,-500.0,0.00022739,2]
[332467266,1721211043470,-500.0,0.00022739,2]
[332467267,1721211043481,-500.0,0.00022739,2]
[332467268,1721211043492,-597.96,0.00022739,2]
[332467269,1721211043501,-500.0,0.00022739,2]
[332467270,1721211043512,-500.0,0.00022739,2]
[332467271,1721211043522,-500.0,0.00022739,2]
[332467272,1721211043532,-500.0,0.00022739,2]
[332467273,1721211043541,-3878.75,0.00022739,2]
[332467274,1721211043551,-500.0,0.00022739,2]
[332467275,1721211043562,-500.0,0.00022739,2]
[332467276,1721211043574,-500.0,0.00022739,2]
[332467277,1721211043586,-780.32,0.00022739,2]
[332467278,1721211043597,-500.0,0.00022739,2]
[332467279,1721211043610,-500.0,0.00022739,2]
[332467280,1721211043622,-500.0,0.00022739,2]
[332467281,1721211043633,-702.82,0.00022739,2]
[332467282,1721211043646,-500.0,0.00022739,2]
[332467283,1721211043658,-500.0,0.00022739,2]
[332467284,1721211043668,-500.0,0.00022739,2]
[332467285,1721211043679,-500.0,0.00022739,2]
[332467286,1721211043691,-11401.43,0.00022739,2]
[332467287,1721211043701,-500.0,0.00022739,2]
[332467288,1721211043712,-500.0,0.00022739,2]
[332467289,1721211043724,-865.56,0.00022739,2]
[332467290,1721211043733,-500.0,0.00022739,2]
[332467291,1721211043743,-2185.06,0.00022739,2]
[332467292,1721211043754,-3000.0,0.00022739,2]
[332467293,1721211043764,-2368.34,0.00022739,2]
[332467294,1721211043776,-500.0,0.00022739,2]
[332467295,1721211043787,-500.0,0.00022739,2]
[332467296,1721211043799,-500.0,0.00022739,2]
[332467297,1721211043810,-500.0,0.00022739,2]
[332467298,1721211043822,-200.0,0.00022739,2]
[332467299,1721211043833,-707.33,0.00022739,2]
[332467300,1721211043844,-500.0,0.00022739,2]
[332467301,1721211043854,-500.0,0.00022739,2]
[332467302,1721211043866,-407.81497286,0.00022739,2]
[332467303,1721211043876,-381.32,0.00022739,2]
[332467304,1721211043887,-500.0,0.00022739,2]
[332467305,1721211043897,-500.0,0.00022739,2]
[332467306,1721211043906,-500.0,0.00022739,2]
[332467307,1721211043916,-500.0,0.00022739,2]
[332467308,1721211043925,-500.0,0.00022739,2]
[332467309,1721211043936,-500.0,0.00022739,2]
[332467310,1721211043947,-500.0,0.00022739,2]
[332467311,1721211043962,-500.0,0.00022739,2]
[332467312,1721211043973,-500.0,0.00022739,2]
[332467313,1721211043983,-612.88,0.00022739,2]
[332467314,1721211043995,-500.0,0.00022739,2]
[332467315,1721211044004,-715.26,0.00022739,2]
[332467316,1721211044014,-150.77383924,0.0002277,4]